Cogmind - Beta 16 @@@ ROGUE MODE // 2025.11.18 @ 18:26:57 // Winter2019/RPGLIKE Player: Jaegerpls Result: Self-destructed Performance ------------- Evolutions (5) 2500 Regions Visited (5) 1000 Robots Destroyed (49) 245 Value Destroyed (1755) 1755 Prototype IDs (19) 380 Alien Tech Used (0) 0 Bonus (852) 852 TOTAL SCORE: 6732 Bonus ------- Follower Combat Kills 228 Registered with UFD 300 Met Optimus in HQ 500 Friendly Fire -176 Cogmind --------- Core Integrity 440/700 Matter 214/300 Energy 290/290 System Corruption 0% Temperature Cool (-100) Movement Walking (135) Location -5/Factory Parts ------- > --- POWER (1) -------- Improved Deuterium Engine > --- PROPULSION (3) --- Makeshift Leg Cargo Legs > --- UTILITY (7+2) ---- Advanced Terrain Scanner Advanced Targeting Computer (+) Matter Filter Kinecellerator Transmission Jammer Hardlight Generator Makeshift System Restoration Module (+) > --- WEAPON (2) ------- Assault Cannon Advanced Assault Cannon > --- INVENTORY (1) ---- (None) Peak State ------------ > --- POWER ------------ Improved Deuterium Engine Micro Nuclear Core > --- PROPULSION ------- Makeshift Leg Cargo Legs > --- UTILITY ---------- Cryofiber Web Advanced Terrain Scanner Advanced Targeting Computer Matter Filter Kinecellerator Tower Shield Hardlight Generator Improved Component Analysis Suite Makeshift System Restoration Module > --- WEAPON ----------- Assault Cannon Advanced Assault Cannon Multitool > --- INVENTORY -------- Transmission Jammer [Rating: 89] Favorites ----------- Power Light Nuclear Core Engine Improved Deuterium Engine Power Core Light Nuclear Core Propulsion Hover Unit Leg Cargo Legs Wheel Wheel Hover Unit Hover Unit Flight Unit Flight Unit Utility Improved Terrain Scanner Device Improved Terrain Scanner Processor Targeting Computer Protection Tower Shield Weapon Multitool Energy Gun Medium Laser Energy Cannon Beam Cannon Ballistic Gun Heavy Battle Rifle Ballistic Cannon Battle Cannon Special Weapon Multitool Build | -11 -10 -10 -7 -7 -5 ------- Run | Yrd Mat Sub Rec Scr Fac Slots Evolved 9 | 4 1 1 2 . 1 Power . | . . . . . . Propulsion 2 | 1 1 . . . . Utility 6 | 2 . 1 2 . 1 Weapon 1 | 1 . . . . . Parts Attached 45 | 5 12 10 11 6 1 Power 4 | 1 1 . 2 . . Engine 2 | 1 . . 1 . . Core 2 | . 1 . 1 . . Reactor . | . . . . . . Propulsion 8 | 1 5 2 . . . Treads . | . . . . . . Leg 2 | . . 2 . . . Wheel 1 | 1 . . . . . Hover 3 | . 3 . . . . Flight 2 | . 2 . . . . Utility 18 | 1 3 3 7 3 1 Device 15 | 1 2 2 6 3 1 Storage . | . . . . . . Processor 2 | . 1 . 1 . . Hackware . | . . . . . . Protection 1 | . . 1 . . . Artifact . | . . . . . . Weapon 15 | 2 3 5 2 3 . Energy Gun 6 | 2 2 1 1 . . Energy Cannon 1 | . 1 . . . . Ballistic Gun 2 | . . 1 . 1 . Ballistic Cannon 4 | . . 1 1 2 . Launcher . | . . . . . . Special Weapon 2 | . . 2 . . . Impact Weapon . | . . . . . . Slashing Weapon . | . . . . . . Piercing Weapon . | . . . . . . Special Melee Weapon . | . . . . . . Unidentified Prototypes 1 | . . 1 . . . Parts Lost 1 | . . . . . 1 Power . | . . . . . . Propulsion . | . . . . . . Utility 1 | . . . . . 1 Weapon . | . . . . . . Highest Loss Streak 1 | . . . . . 1 To Critical Strikes . | . . . . . . Average Backups . | . . . . . . Power . | . . . . . . Propulsion . | . . . . . . Utility . | . . . . . . Weapon . | . . . . . . Tool/Special . | . . . . . . Unused Backups 2 | . 1 1 . . . Power 1 | . . 1 . . . Propulsion 1 | . 1 . . . . Utility . | . . . . . . Weapon . | . . . . . . Tool/Special . | . . . . . . Average Slot Usage (%) 72 | . 93 69 62 70 71 Engine 1 | . 1 . 1 4 4 Core 6 | . 10 6 5 4 4 Leg 3 | . . . 9 9 9 Hover 12 | . 20 19 . . . Flight 1 | . 6 . . . . Device 20 | . 20 15 24 27 30 Processor 3 | . 8 2 . 4 4 Protection 3 | . . 3 4 4 4 Energy Gun 3 | . 15 1 . . . Energy Cannon 2 | . 8 2 . . . Ballistic Gun 3 | . . 4 4 1 . Ballistic Cannon 4 | . . 5 4 7 9 Special Weapon 3 | . . 3 4 4 4 Peak Build Rating 89 | 7 14 61 81 83 89 Average Rating 47 | 5 11 35 72 80 86 On Entrance 41 | . 7 14 61 81 83 Avg Prop Armor Cover (%) . | . . . . . . Naked Turns . | . . . . . . Heaviest Build 87 | 6 13 59 77 86 87 Greatest Support 75 | 10 18 75 75 75 75 Greatest Overweight (x) 3 | . 1 3 1 1 1 Average Overweight (x) . | . . 1 . 1 1 Largest Inventory Capacity 1 | 1 1 1 1 1 1 Average Capacity 1 | 1 1 1 1 1 1 Most Carried 1 | . 1 1 1 1 1 Average Carried . | . . . . . . Final Capacity 1 | 1 1 1 1 1 1 Final Carried 1 | . 1 . . 1 . Class Distribution -------------------- 28% | Scavenger-Skirmisher 22% | Commander-Gunner 15% | Scavenger-Mutant 13% | Mutant 11% | Commander-Skirmisher 6% | Derelict-Skirmisher Dominant Class ---------------- Mutant | -10/Materials Scavenger-Skirmisher | -10/Subcaves Commander-Skirmisher | -7/Recycling Commander-Gunner | -7/Scraptown Derelict-Gunner | -5/Factory Resources | -11 -10 -10 -7 -7 -5 ----------- Run | Yrd Mat Sub Rec Scr Fac Matter Collected 1753 | 201 226 616 439 185 86 Remotely . | . . . . . . Salvage Created 1949 | 149 836 238 668 . 58 Parts 101 | 13 42 24 19 . 3 Haulers Intercepted 1 | . 1 . . . . Recyclers Shooed 2 | 1 1 . . . . Parts Field Recycled . | . . . . . . Retrieved Matter . | . . . . . . Parts Self-Destructed 18 | . . 18 . . . Prevented . | . . . . . . Parts Restored . | . . . . . . Kills | -11 -10 -10 -7 -7 -5 ------- Run | Yrd Mat Sub Rec Scr Fac Combat Hostiles Destroyed 32 | . 13 9 7 . 3 Guns 18 | . 11 2 5 . . Cannons 13 | . 1 7 2 . 3 AOE 1 | . 1 . . . . Classes Destroyed 11 | 2 6 . 3 . . Worker 3 | . 2 . 1 . . Tunneler 3 | 3 . . . . . Hauler 1 | . 1 . . . . Recycler 5 | 1 3 . 1 . . Watcher 2 | . 2 . . . . Swarmer 6 | . 6 . . . . Grunt 12 | . 5 2 2 . 3 Sentry 3 | . . . 3 . . Hunter 1 | . . . 1 . . Programmer 3 | . . . 3 . . Subdweller 10 | . 2 8 . . . Best Kill Streak 6 | 2 6 2 5 . 2 Combat Bots Only 5 | . 4 2 5 . 2 Max Kills in Single Turn 2 | 1 1 1 2 . 1 Gunslinging . | . . . . . . Exploded 1 | . 1 . . . . Melee . | . . . . . . Uniques/NPCs Destroyed . | . . . . . . Combat | -11 -10 -10 -7 -7 -5 -------- Run | Yrd Mat Sub Rec Scr Fac Hostile Shots Fired 199 | . 59 28 80 . 32 Missed 70 | . 21 14 29 . 6 Hits 129 | . 38 14 51 . 26 Projectile 129 | . 38 14 51 . 26 AOE 4 | . . 3 1 . . Critical Strikes 3 | . 1 . 1 . 1 Damage Taken 1839 | . 407 435 635 . 362 Core 1196 | . 351 305 344 . 196 Absorbed by Shields 108 | . . . . . 108 Redirected to Core 835 | . 172 175 305 . 183 Core Remaining (%) 80 | 100 . . . 60 . Volleys Fired 296 | 6 147 61 66 . 16 Largest 3 | 2 2 3 2 . 2 Hottest 125 | 80 125 125 70 . 77 Shots Fired 582 | 12 292 114 132 . 32 Gun 320 | 12 189 53 66 . . Cannon 249 | . 103 48 66 . 32 Launcher . | . . . . . . Special 13 | . . 13 . . . Kinetic 225 | . . 61 132 . 32 Thermal 357 | 12 292 53 . . . Explosive . | . . . . . . Electromagnetic . | . . . . . . Robot Hit Streak 24 | 4 10 24 9 . 11 Robot Miss Streak 4 | 2 4 3 3 . 2 Penetration Max . | . . . . . . Secondary Targets . | . . . . . . Shots Hit Robots 164 | 6 65 39 32 . 22 Core Hits 84 | 5 36 17 18 . 8 Critical Kills 1 | . 1 . . . . Critical Parts Destroyed 1 | . . . 1 . . Critical Strikes 7 | . 4 . 1 . 2 Burn 3 | . 3 . . . . Meltdown 1 | . 1 . . . . Destroy 1 | . . . 1 . . Blast 2 | . . . . . 2 Melee Attacks . | . . . . . . Impact . | . . . . . . Slashing . | . . . . . . Piercing . | . . . . . . Sneak Attacks . | . . . . . . Combat Hostiles . | . . . . . . Follow-up Attacks . | . . . . . . Damage Inflicted 3307 | 61 946 637 1079 . 584 Guns 1477 | 61 686 215 515 . . Cannons 1525 | . 121 422 398 . 584 Explosions 305 | . 139 . 166 . . Melee . | . . . . . . Ramming . | . . . . . . Kinetic 1671 | . . 174 913 . 584 Thermal 1331 | 61 807 463 . . . Explosive 166 | . . . 166 . . Electromagnetic 139 | . 139 . . . . Impact . | . . . . . . Slashing . | . . . . . . Piercing . | . . . . . . Highest Corruption 3 | . 3 3 2 . . Average Corruption 2 | . 2 2 1 . . Corruption Purged 5 | . . 3 2 . . Corruption Blocked . | . . . . . . Effects 91 | . 29 59 3 . . Message Errors 22 | . 6 14 2 . . Matter Fused 23 | . 5 17 1 . . Heat Flow Errors 9 | . 4 5 . . . Energy Discharges 17 | . 6 11 . . . Parts Fused 1 | . . 1 . . . Data Loss (minor) 7 | . 3 4 . . . Data Loss (major) 6 | . 3 3 . . . Misfires 4 | . 1 3 . . . Alerts 1 | . . 1 . . . Weapon Failures 1 | . 1 . . . . Overload Shots . | . . . . . . Overflow Damage 25 | . . . 25 . . Projectiles 25 | . . . 25 . . Explosions . | . . . . . . Melee . | . . . . . . Knockbacks 7 | . . 1 3 . 3 Impact . | . . . . . . Kinetic 7 | . . 1 3 . 3 Secondary . | . . . . . . Self-Inflicted Damage 61 | . 20 . 41 . . Shots 2 | . 1 . 1 . . Rammed . | . . . . . . Targets Rammed . | . . . . . . Kicked . | . . . . . . Crushed . | . . . . . . Highest Temperature 202 | . 202 200 . . . Average Temperature 41 | . 36 86 . . . Received Heat Transfer 258 | . 93 54 69 . 42 Siege Activations . | . . . . . . Martial Activations . | . . . . . . Shielding Activations . | . . . . . . Robots Disrupted . | . . . . . . Combat Hostiles . | . . . . . . Robots Corrupted . | . . . . . . Combat Hostiles . | . . . . . . Parts Fried . | . . . . . . Impact Corruptions . | . . . . . . Robots Melted 1 | . 1 . . . . Combat Hostiles . | . . . . . . Parts Melted 2 | . 2 . . . . Heat Transferred 3430 | 150 2244 1036 . . . Parts Sabotaged . | . . . . . . Parts Stolen . | . . . . . . Parts Stripped . | . . . . . . Power Chain Reactions 1 | . 1 . . . . Alert | -11 -10 -10 -7 -7 -5 ------- Run | Yrd Mat Sub Rec Scr Fac Maximum Alert Level 1 | . 1 . 1 . . Low Security (%) 91 | 100 82 . 99 . 100 Level 1 8 | . 17 . . . . Level 2 . | . . . . . . Level 3 . | . . . . . . Level 4 . | . . . . . . Level 5 . | . . . . . . High Security . | . . . . . . Max Security . | . . . . . . Peak Influence 368 | 10 368 . 217 . 42 Initial . | . . . . . . Average 67 | 2 83 . 62 . 10 Influence Increases 1738 | 20 814 76 741 . 87 Destroy 0b10 Robot/C 560 | . 220 60 220 . 60 Destroy 0b10 Robot/NC 80 | 20 40 . 20 . . Destroy Leader 76 | . 56 10 . . 10 Allied During Kill 43 | . . 6 37 . . Successful Hack 25 | . 16 . 9 . . Disable Machine 645 | . 300 . 330 . 15 Destroy Structure 249 | . 122 . 125 . 2 Lose Combat Pursuer 60 | . 60 . . . . Influence Decreases 1738 | 20 462 428 568 173 87 Entered New Map 343 | . . 170 . 173 . Time Decay 1126 | 20 462 237 322 . 85 Lost Part 2 | . . . . . 2 Lost Ally 117 | . . 21 96 . . Purge Threat 150 | . . . 150 . . Squads Dispatched 4 | . 2 . . . 2 Investigation . | . . . . . . Extermination . | . . . . . . Reinforcement 4 | . 2 . . . 2 Assault . | . . . . . . Garrison . | . . . . . . Intercept . | . . . . . . Searches Triggered . | . . . . . . Construction Impeded . | . . . . . . Haulers Reinforced 1 | . . . . . 1 Active Scanning Responses . | . . . . . . Cargo Convoy Interrupts . | . . . . . . Stealth | -11 -10 -10 -7 -7 -5 --------- Run | Yrd Mat Sub Rec Scr Fac Distress Signals 4 | . 3 . . . 1 Communications Jammed 1 | . . . 1 . . Distress Signals 1 | . . . 1 . . Times Spotted 58 | . 21 19 13 . 5 Peak Tracking Total 7 | . 3 3 7 . 2 Tactical Retreats 4 | . 4 . . . . Traps | -11 -10 -10 -7 -7 -5 ------- Run | Yrd Mat Sub Rec Scr Fac Traps Triggered 3 | . 3 . . . . Indirectly . | . . . . . . Trap Hack Attempts . | . . . . . . Triggered . | . . . . . . Disarmed . | . . . . . . Reprogrammed . | . . . . . . Reused . | . . . . . . Traps Extracted . | . . . . . . Installed . | . . . . . . Triggered . | . . . . . . Machines | -11 -10 -10 -7 -7 -5 ---------- Run | Yrd Mat Sub Rec Scr Fac Machines Disabled 44 | . 20 1 22 . 1 Max in Single Turn 3 | . 3 1 3 . 1 Machines Repaired . | . . . . . . Machines Dismantled . | . . . . . . Machines Sabotaged . | . . . . . . Overloaded Fab Kills . | . . . . . . Hacking | -11 -10 -10 -7 -7 -5 --------- Run | Yrd Mat Sub Rec Scr Fac Machines Accessed 28 | . 8 2 11 7 . Terminals 12 | . 6 . 6 . . Fabricators . | . . . . . . Repair Stations . | . . . . . . Recycling Units 7 | . 2 . 5 . . Scanalyzers . | . . . . . . Garrison Access . | . . . . . . Total Hacks 103 | . 20 12 24 47 . Successful 78 | . 9 12 10 47 . Failed 25 | . 11 . 14 . . Catastrophic 1 | . 1 . . . . Database Lockouts . | . . . . . . Manual 37 | . 19 . 18 . . Terminals 31 | . 16 . 15 . . Fabricators . | . . . . . . Repair Stations . | . . . . . . Recycling Units 13 | . 4 . 9 . . Scanalyzers . | . . . . . . Garrison Access . | . . . . . . Terminal Hacks 60 | . . 12 1 47 . Record 57 | . . 11 . 46 . Unreport Threat 1 | . . . 1 . . Proto ID Catalog 2 | . . 1 . 1 . Fabricator Hacks . | . . . . . . Repair Station Hacks . | . . . . . . Recycling Unit Hacks 6 | . 2 . 4 . . Report Inventory 6 | . 2 . 4 . . Scanalyzer . | . . . . . . Garrison Access Hacks . | . . . . . . Unauthorized Hacks 11 | . 6 . 5 . . Terminals 9 | . 6 . 3 . . Botnet 5 | . 2 . 3 . . Skim 4 | . 4 . . . . Fabricators . | . . . . . . Repair Stations . | . . . . . . Recycling Units 2 | . . . 2 . . Reject 1 | . . . 1 . . Recyclers 1 | . . . 1 . . Scanalyzers . | . . . . . . Garrison Access . | . . . . . . Data Cores Recovered . | . . . . . . Used . | . . . . . . Hacking Detections 15 | . 7 . 8 . . Full Trace Events 1 | . . . 1 . . Feedback Events . | . . . . . . Feedback Blocked . | . . . . . . Robot Schematics Acquired . | . . . . . . Robots Built . | . . . . . . Authchips . | . . . . . . Time . | . . . . . . Total Robot Build Rating . | . . . . . . Part Schematics Acquired . | . . . . . . Parts Built . | . . . . . . Authchips . | . . . . . . Time . | . . . . . . Total Part Build Rating . | . . . . . . Part Studies Acquired . | . . . . . . Parts Repaired . | . . . . . . Time . | . . . . . . Parts Recycled . | . . . . . . Recycled Matter . | . . . . . . Retrieved Matter . | . . . . . . Retrieved Components . | . . . . . . Parts Scanalyzed . | . . . . . . Part Schematics Acquired . | . . . . . . Parts Damaged . | . . . . . . Bothacking | -11 -10 -10 -7 -7 -5 ------------ Run | Yrd Mat Sub Rec Scr Fac Used RIF Installer . | . . . . . . Robots Hacked . | . . . . . . Non-combat . | . . . . . . Combat . | . . . . . . Robot Hacks Applied . | . . . . . . Relay Couplers Released . | . . . . . . Fabnet Peak Effective % . | . . . . . . Robots Rewired 15 | . . . 15 . . Allies Hacked 2 | . . . 2 . . Hacks Repelled . | . . . . . . Allies | -11 -10 -10 -7 -7 -5 -------- Run | Yrd Mat Sub Rec Scr Fac Total Allies 26 | . . 11 15 . . Largest Group 11 | . . 6 11 7 7 Highest-Rated Group 213 | . . 114 213 103 103 Highest-Rated Ally 34 | . . 19 34 34 34 Total Orders . | . . . . . . Ally Attacks 56 | . . 21 32 . 3 Total Damage 1098 | . . 288 738 . 72 Kills 9 | . . 2 6 . 1 Allies Corrupted . | . . . . . . Allies Melted . | . . . . . . Intel | -11 -10 -10 -7 -7 -5 ------- Run | Yrd Mat Sub Rec Scr Fac Active Infowar (turns) 12358 | 52 2036 5481 2131 2406 252 Terrain 12356 | 52 2034 5481 2131 2406 252 Seismic 2 | . 2 . . . . Jamming 1748 | . . . 1601 91 56 Robot Analysis Total . | . . . . . . Derelict Logs Recovered 3 | . . 3 . . . Drone Launches . | . . . . . . Drone Recoveries . | . . . . . . Exploration | -11 -10 -10 -7 -7 -5 ------------- Run | Yrd Mat Sub Rec Scr Fac Turns Passed 12393 | 85 2037 5481 2131 2407 252 Spaces Moved 5956 | 34 1639 2260 819 1115 89 Core 1 | 1 . . . . . Treads . | . . . . . . Legs 2233 | . . 210 819 1115 89 Wheels 42 | 33 9 . . . . Hover 3283 | . 1233 2050 . . . Flight 397 | . 397 . . . . Fastest Speed 37 | 50 37 52 135 205 205 Average Speed 133 | 79 56 146 150 205 205 Slowest Speed 232 | 80 120 232 205 205 205 Overloaded Moves . | . . . . . . Propulsion Burnouts . | . . . . . . Robots Hopped . | . . . . . . Potential Cave-ins . | . . . . . . Cave-ins Triggered . | . . . . . . Exploration Rate (%) 62 | 3 99 93 95 84 2 Regions Visited 5 Branch Regions 3 Pre-discovered Areas . | . . . . . . Known Exits Taken 1 | . . 1 . . . Unknown Exits Taken 4 | 1 1 . 1 1 . Scrap Searched 20 | . . 17 . 3 . Spaces Dug 11 | . . 1 10 . . Terrain Destroyed 259 | . 133 3 122 . 1 Melee . | . . . . . . Projectile 24 | . . 3 20 . 1 AOE 235 | . 133 . 102 . . Terrain Rammed . | . . . . . . Walls Destroyed . | . . . . . . Machines Disabled . | . . . . . . Actions | -11 -10 -10 -7 -7 -5 --------- Run | Yrd Mat Sub Rec Scr Fac Total 9797 | 77 2455 4321 1581 1236 127 Wait 3256 | 33 626 1942 536 111 8 Move 5951 | 33 1638 2259 818 1114 89 Hop . | . . . . . . Pick Up 8 | . 3 2 3 . . Fast Attach 42 | 5 10 10 10 6 1 Attach 7 | . 1 3 1 . 2 Detach 10 | . 2 4 1 2 1 Swap 6 | . 2 1 3 . . Drop 33 | . 10 11 8 3 1 Fire 296 | 6 147 61 66 . 16 Melee . | . . . . . . Ram . | . . . . . . Kick . | . . . . . . Crush . | . . . . . . Escape Stasis . | . . . . . . Rewire 125 | . . . 125 . . Trap . | . . . . . . Miscellaneous 63 | . 16 28 10 . 9 Route ------- -11/Scrapyard -10/Materials (discovered 5 exits: [*Mat x3] / [*Min] / *Sub) -10/Subcaves (discovered 3 exits: [*Mat x2] / *Rec) -7/Recycling (discovered 2 exits: [*Fac] / *Scr) -7/Scraptown (discovered 2 exits: [*Fac x2]) -5/Factory History --------- Turn | Location | Event 1 | -11/Scrapyard | Upgraded with Propulsion slot (x1) 1 | -11/Scrapyard | Upgraded with Utility slot (x2) 1 | -11/Scrapyard | Upgraded with Weapon slot (x1) 26 | -11/Scrapyard | Discovered new exit (range 15) 86 | -11/Scrapyard | Entered Materials 327 | -10/Materials | Build established: Mutant 339 | -10/Materials | Discovered new exit (range 15) 473 | -10/Materials | Discovered new exit (range 10) 479 | -10/Materials | Discovered new exit (range 16) 586 | -10/Materials | Derelicts attacked the area 628 | -10/Materials | Discovered new exit (range 14) 816 | -10/Materials | Discovered new exit (range 7) 1606 | -10/Materials | Reached level 2 1608 | -10/Materials | Upgraded with Propulsion slot (x1) 1916 | -10/Materials | Build established: Scavenger-Mutant 2123 | -10/Materials | Entered Subcaves 2125 | -10/Subcaves | Reached level 3 2165 | -10/Subcaves | A swath of the cavern ceiling suddenly collapsed 2398 | -10/Subcaves | Learned Materials garrison access intel 2641 | -10/Subcaves | Disturbed a concealed Subdweller 2786 | -10/Subcaves | Discovered new exit (range 11) 2843 | -10/Subcaves | Visited Clippyterm 2844 | -10/Subcaves | Learned Factory emergency access door positions 3242 | -10/Subcaves | Shifting Twisted Machinery released Hvy. Battle Rifle 3256 | -10/Subcaves | Shifting Twisted Machinery released Unknown Special Weapon 3273 | -10/Subcaves | Shifting Twisted Machinery released Shrapnel Trap 3291 | -10/Subcaves | Shifting Twisted Machinery released Sub. Shrapnel Launcher 3474 | -10/Subcaves | Identified exit to Recycling 3513 | -10/Subcaves | Learned Materials security intel 3528 | -10/Subcaves | Visited 4L-MR0's lab 3533 | -10/Subcaves | Upgraded with Utility slot (x1) 3538 | -10/Subcaves | Found Tower Shield 3539 | -10/Subcaves | Attached Tower Shield, gained temporary slots: Power, Propulsion x2, Utility x2, Weapon x2 3636 | -10/Subcaves | Visited triangular shrine 3648 | -10/Subcaves | Found Prototype Device 3648 | -10/Subcaves | Identified V3-11A's Pendant 3653 | -10/Subcaves | Befriended Subdweller 3935 | -10/Subcaves | Build established: Scavenger-Skirmisher 4007 | -10/Subcaves | Discovered new exit (range 13) 4463 | -10/Subcaves | Befriended Subdweller 5223 | -10/Subcaves | Befriended Subdweller 5380 | -10/Subcaves | Shifting Twisted Machinery released Mak. Sword 5414 | -10/Subcaves | Shifting Twisted Machinery released Mak. Light Armor Plating 5715 | -10/Subcaves | A swath of the cavern ceiling suddenly collapsed 5828 | -10/Subcaves | Befriended Subdweller 5838 | -10/Subcaves | Disturbed a concealed Subdweller 5838 | -10/Subcaves | Befriended Subdweller 6058 | -10/Subcaves | Befriended Subdweller 6073 | -10/Subcaves | Befriended Subdweller 6098 | -10/Subcaves | Befriended Subdweller 6113 | -10/Subcaves | Lost 4 allies 6293 | -10/Subcaves | Befriended Subdweller 7153 | -10/Subcaves | A Subdweller sparked back to life 7153 | -10/Subcaves | A Subdweller sparked back to life 7153 | -10/Subcaves | A Subdweller sparked back to life 7158 | -10/Subcaves | Befriended Subdweller 7158 | -10/Subcaves | Befriended Subdweller 7164 | -10/Subcaves | Found Cargo Legs 7165 | -10/Subcaves | Attached Cargo Legs, gained temporary slots: Utility x2 7471 | -10/Subcaves | Build established: Derelict-Skirmisher 7604 | -10/Subcaves | Entered Recycling 7604 | -7/Recycling | Accompanied by 6 allies 7606 | -7/Recycling | Reached level 4 7625 | -7/Recycling | Upgraded with Utility slot (x1) 8119 | -7/Recycling | Build established: Commander-Skirmisher 8252 | -7/Recycling | Reached level 5 8290 | -7/Recycling | Lost 5 allies 9135 | -7/Recycling | Discovered new exit (range 15) 9158 | -7/Recycling | Reached level 6 9249 | -7/Recycling | Upgraded with Utility slot (x1) 9685 | -7/Recycling | Scanned before Scraplab entrance 9716 | -7/Recycling | Entered Scraplab 9733 | -7/Recycling | Discovered new exit (range 2) 9735 | -7/Recycling | Entered Scraptown 9735 | -7/Scraptown | Accompanied by 7 allies 9760 | -7/Scraptown | Build established: Commander-Gunner 10098 | -7/Scraptown | Visited UFD Registry 10119 | -7/Scraptown | Registered with UFD as "Toolspreader" 10244 | -7/Scraptown | Discovered new exit (range 13) 10348 | -7/Scraptown | Heard Great Nut preacher, LISTEN AND RECITE! 10504 | -7/Scraptown | Delivered V3-11A's Pendant to T0-NE2 in exchange for information 10911 | -7/Scraptown | Visited Fellowship of the Rings 10942 | -7/Scraptown | Visited The Evicted 10969 | -7/Scraptown | Visited Cave Peace 11026 | -7/Scraptown | Visited Red Mages 11125 | -7/Scraptown | Visited Awakened 11198 | -7/Scraptown | Visited Science Guys 11266 | -7/Scraptown | Visited Junk Cannon Lab 11295 | -7/Scraptown | Visited Botcube Research 11523 | -7/Scraptown | Visited Research Penetration Think Tank 11612 | -7/Scraptown | Visited Abandonware Association 11624 | -7/Scraptown | Discovered new exit (range 15) 11633 | -7/Scraptown | Learned abandonware demo "MELTYB.EXE" 11633 | -7/Scraptown | Learned abandonware demo "REBOOT5.EXE" 11715 | -7/Scraptown | Visited Scrapoid Pod Storage 11762 | -7/Scraptown | Visited Junk Repository 12027 | -7/Scraptown | Met Optimus 12027 | -7/Scraptown | Reached level 7 12027 | -7/Scraptown | Accepted into 0bPrime 12142 | -7/Scraptown | Entered Factory 12142 | -5/Factory | Accompanied by 7 allies 12144 | -5/Factory | Reached level 8 12145 | -5/Factory | Upgraded with Utility slot (x1) 12246 | -5/Factory | Lost 5 allies 12394 | -5/Factory | Self-destructed Last Messages --------------- 12295_ A-15 Conveyor suffers critical hit (Blast). 12295_ Destroyed Adv. Weight Redist. System. 12295_ A-15 Conveyor Imp. Ion Engine blasted off. 12298_ G-50 Soldier knocked back. 12301_ G-50 Soldier destroyed. 12304_ G-50 Soldier knocked back. 12310_ G-50 Soldier destroyed. 12382_ K-01 Serf collects debris. 12382_ Penetrated by Slug. 12385_ K-01 Serf collects debris. 12386_ Penetrated by Slug. 12392_ Tower Shield destroyed. 12394_ K-01 Serf collects debris. 12394_ Penetrated by Slug. 12394_ Slug penetrates Serf 4a. 12394_ Serf 4a destroyed. 12394_ Temporary Power slot lost. 12394_ Temporary Propulsion slot lost. 12394_ Temporary Utility slot lost. 12394_ Temporary Weapon slot lost. Map ----- +----------------------------------------------------+ | ??#????##??#??????????????????????????????? | | ???##???#?#?#?#???????????????????????????? | | #?#??###??##??#???????????????????????????? | | ?#??#??###?#?##??#??#?????????????????????? | | #?#####?##??#####??#??????????????????????? | | #???#?#?????? ? ##???#?????????????????? | | ##?######## ##?###?????????????????? | | ###?#?##### # ? ? +? ?????????????? | | ??######### # ###?????????????? | | #?######### # ####??+?????????? | | ########### # # ? ???????????? | | ########### # #? ??????????? | | ########### ? # # """?"????????? | | ########### # # "?""""???????? | | ################+### # """"""???????? | | ############## # # """""????????? | | ############## " # # ???????? | | # # "T + + """"""" ?????? | | # # ### # # """"""" ?????? | | # """" # ### # # """"""" ?????? | | # """" # ################ """""?" ?????? | | # """" # ###### ##### ?????? | | # """" # ###### ;#########/#####????? | | # # = % h ???? | | # """" # %| %%h ???? | | # """" + @! % % ????? | | # """" # % *%=% ???? | | # """" # !!=a %=k ????? | | # #####+####+####### T## ???? | | # """" #####%*%* [##### ????? | | # """" #####"""% ##### ???? | | # """" #####"R ##### ????? | | # """" #####"""= + ???? | | # ##### % # ###???? | | # ##### = + ###???? | | ############## %] #######+#+###???? | | ############## """"" ## ?????? | | ############## """"""" ## """ """ ???? | | ############## ! """"""" ## """ """?? ???? | | ############## """"""" ## """ """ ???? | | ############## ## ?????? | | ?########################### ????? | | ############################ ?"" ??????? | | ?########################### ""? ? ??????? | | ?########################?## "S ???????? | | ??#####################?#### """ ?????????? | | ????#######################? "" ????????? | | ?#?####################?#### ???????????? | | #########??#################??##??????????? | | | +----------------------------------------------------+ Best States ------------- Heat Dissipation 65 Energy Generation 31 Energy Capacity 340 Matter Stores 300 Matter Capacity 300 Sight Range 16 Robot Scan Range 18 Terrain Scan Range 20 Terrain Scan Density 310 Jamming Range 12 Base Temperature (-) 100 Armor Coverage 2000 Evasion (%) 62 Targeting Accuracy 8 Matter Filtering 30 Kinecelleration 30 Item Schematics ----------------- None Robot Schematics ------------------ None Fabricated ------------ Nothing Repaired ---------- Nothing Studied --------- None Alien Tech Used ----------------- None Achievements -------------- None Challenges ------------ None RPGLIKE | -11 -10 -10 -7 -7 -5 --------- Run | Yrd Mat Sub Rec Scr Fac Levels Raised 7 | . 1 1 3 1 1 XP Earned 14013 | 3000 2850 1381 3957 900 1925 XP Spent 13480 | 2990 1505 1500 4485 1000 2000 Upgrades 33 | 11 6 2 8 5 1 Propulsion Slot 2 | 1 1 . . . . Utility Slot 6 | 2 . 1 2 . 1 Weapon Slot 1 | 1 . . . . . Core Integrity 2 | . . . 2 . . Heat Dissipation 5 | 2 3 . . . . Energy Generation 1 | . 1 . . . . Inventory Capacity 1 | 1 . . . . . Sensor Range 9 | 1 1 . 2 5 . Terrain Scan Density 3 | 3 . . . . . Ranged Accuracy 3 | . . 1 2 . . Protomatter Created 355 | . 111 184 . . 60 Integrity Restored 1301 | . 299 598 194 . 210 Core 936 | . 286 370 70 . 210 Parts 365 | . 13 228 124 . . Protomatter Decayed 159 | . 10 123 26 . . Game ------ Seed MiniMicroBeamcaster Manual? 0 Play Time 01:38:55 Cumulative 85.8 hours Start 2025.11.18 @ 16:57:08 End 2025.11.18 @ 18:26:57 Sessions 1 Manual Loads 0 Difficulty Rogue Special Mode Winter2019/RPGLIKE Game No. 79 Rogue 79 Adventurer 0 Explorer 0 Win Type - Total 0 Types 0/0/0/0/0/0/0/0/0/0 Lore% 59 Gallery% 39 Achievement% 36 Wizard Run 0 Options --------- Layout 0 ASCII 0 Keyboard 0 Movement Mouse Keybinds 0 Fullscreen 2 Font 24/Smallcaps Map View 76x50 Zoom Use 0% Tactical HUD 1 Map Filters NONE Filters NONE Steam 1 RUN: e90b74d6-0920-4076-bb6e-9f0a86f2f841